fUSD/lending_fUSD_20260115
["ID","MTS","AMOUNT","RATE_DAILY","PERIOD"]
[402090533,1768516239530,-547.13953572,0.00016354,2]
[402090534,1768516239539,-500.0,0.00016354,2]
[402090535,1768516239549,-342.66,0.00016397,2]
[402090536,1768516239558,-500.0,0.00016438,2]
[402090537,1768516239567,-500.0,0.00016438,2]
[402090538,1768516239577,-500.0,0.00016438,2]
[402090539,1768516239586,-500.0,0.00016438,2]
[402090540,1768516239596,-500.0,0.00016438,2]
[402090541,1768516239605,-500.0,0.00016438,2]
[402090542,1768516239615,-500.0,0.00016438,2]
[402090543,1768516239624,-500.0,0.00016438,2]
[402090544,1768516239634,-500.0,0.00016438,2]
[402090546,1768516239644,-500.0,0.00016438,2]
[402090547,1768516239653,-500.0,0.00016438,2]
[402090549,1768516239663,-500.0,0.00016438,2]
[402090550,1768516239672,-500.0,0.00016438,2]
[402090551,1768516239681,-500.0,0.00016438,2]
[402090552,1768516239691,-500.0,0.00016438,2]
[402090553,1768516239700,-500.0,0.00016438,2]
[402090555,1768516239710,-500.0,0.00016438,2]
[402090556,1768516239719,-500.0,0.00016438,2]
[402090557,1768516239729,-500.0,0.00016438,2]
[402090558,1768516239740,-500.0,0.00016438,2]
[402090559,1768516239749,-500.0,0.00016438,2]
[402090560,1768516239759,-500.0,0.00016438,2]
[402090561,1768516239768,-500.0,0.00016438,2]
[402090563,1768516239779,-331.98509124,0.00016438,2]
[402090564,1768516239788,-500.0,0.00016438,2]
[402090566,1768516239797,-500.0,0.00016438,2]
[402090567,1768516239807,-500.0,0.00016438,2]
[402090568,1768516239817,-500.0,0.00016438,2]
[402090569,1768516239826,-500.0,0.00016438,2]
[402090570,1768516239836,-500.0,0.00016438,2]
[402090571,1768516239845,-500.0,0.00016438,2]
[402090572,1768516239855,-500.0,0.00016438,2]
[402090573,1768516239864,-500.0,0.00016438,2]
[402090574,1768516239874,-500.0,0.00016438,2]
[402090575,1768516239883,-500.0,0.00016438,2]
[402090576,1768516239892,-500.0,0.00016438,2]
[402090577,1768516239902,-500.0,0.00016438,2]
[402090578,1768516239911,-500.0,0.00016438,2]
[402090579,1768516239920,-500.0,0.00016438,2]
[402090580,1768516239929,-500.0,0.00016438,2]
[402090581,1768516239939,-500.0,0.00016438,2]
[402090582,1768516239949,-500.0,0.00016438,2]
[402090583,1768516239958,-500.0,0.00016438,2]
[402090584,1768516239968,-500.0,0.00016438,2]
[402090585,1768516239979,-331.98509124,0.00016438,2]
[402090586,1768516239989,-500.0,0.00016438,2]
[402090587,1768516240000,-168.01490876,0.00016438,2]
[402090588,1768516240010,-500.0,0.00016438,2]
[402090589,1768516240020,-500.0,0.00016438,2]
[402090590,1768516240030,-271.60493913,0.00016438,2]
[402090591,1768516240040,-500.0,0.00016438,2]
[402090592,1768516240049,-500.0,0.00016438,2]
[402090593,1768516240059,-271.60493913,0.00016438,2]
[402090594,1768516240070,-500.0,0.00016438,2]
[402090595,1768516240080,-500.0,0.00016438,2]
[402090596,1768516240090,-271.60493913,0.00016438,2]
[402090597,1768516240099,-500.0,0.00016438,2]
[402090598,1768516240109,-500.0,0.00016438,2]
[402090599,1768516240118,-271.60493913,0.00016438,2]
[402090600,1768516240128,-1248.0,0.00016438,2]
[402090601,1768516240140,-815.0,0.00016438,2]
[402090602,1768516240152,-500.0,0.00016442,2]
[402090603,1768516240163,-500.0,0.00016498,2]
[402090604,1768516240174,-36492.17346544,0.00016563,2]
[402090605,1768516240183,-27459.38702439,0.00016563,2]
[402090606,1768516240194,-1854.97,0.00016613,2]
[402090607,1768516240203,-372.06,0.00016682,2]
[402090608,1768516240212,-540.66681905,0.00016716,2]
[402090609,1768516240222,-510.0,0.00016716,2]
[402090610,1768516240232,-200.0,0.0001679,2]
[402090611,1768516240242,-200.0,0.0001679,2]
[402090612,1768516240251,-500.0,0.0001679,2]
[402090613,1768516240260,-36492.17346544,0.00016831,2]
[402090614,1768516240270,-27459.38702439,0.00016831,2]
[402090615,1768516240283,-166.66,0.00016855,2]
[402090616,1768516240292,-500.0,0.00016973,2]
[402090617,1768516240304,-500.0,0.00016973,2]
[402090618,1768516240314,-500.0,0.00016973,2]
[402090619,1768516240328,-500.0,0.00016973,2]
[402090620,1768516240338,-500.0,0.00016973,2]
[402090621,1768516240347,-500.0,0.00016973,2]
[402090622,1768516240358,-500.0,0.00016973,2]
[402090623,1768516240367,-500.0,0.00016973,2]
[402090624,1768516240376,-543.38282097,0.00016973,2]
[402090626,1768516240387,-500.0,0.00016973,2]
[402090628,1768516240397,-500.0,0.00016973,2]
[402090629,1768516240407,-500.0,0.00016973,2]
[402090630,1768516240416,-500.0,0.00016973,2]
[402090632,1768516240426,-500.0,0.00016973,2]
[402090633,1768516240435,-500.0,0.00016973,2]
[402090634,1768516240444,-500.0,0.00016973,2]
[402090635,1768516240455,-500.0,0.00016973,2]
[402090636,1768516240467,-315.46484689,0.00016973,2]
[402090637,1768516240476,-500.0,0.00016973,2]
[402090639,1768516240486,-165.87138699,0.00016973,2]
[402090641,1768516240495,-500.0,0.00016973,2]
[402090642,1768516240504,-500.0,0.00016973,2]
[402090644,1768516240514,-500.0,0.00016973,2]
[402090645,1768516240523,-500.0,0.00016973,2]
[402090646,1768516240532,-1680.0,0.00017055,2]
[402090647,1768516240543,-330.0,0.00017055,2]
[402090648,1768516240554,-420.0,0.00017055,2]
[402090649,1768516240564,-36492.17346544,0.00017098,2]
[402090650,1768516240573,-27459.38702439,0.00017098,2]
[402090651,1768516240583,-1680.0,0.00017141,2]
[402090652,1768516240592,-2121.39430543,0.00017152,2]
[402090653,1768516240602,-3048.83620135,0.00017153,2]
[402090654,1768516240611,-600.0,0.00017153,2]
[402090655,1768516240620,-600.0,0.00017153,2]
[402090656,1768516240629,-250.0,0.00017153,2]
[402090657,1768516240639,-1285.0,0.00017205,2]
[402090658,1768516240648,-195.0,0.00017263,2]
[402090659,1768516240658,-443.85820219,0.00017263,2]
[402090660,1768516240669,-300.0,0.00017263,2]
[402090661,1768516240679,-300.0,0.00017263,2]
[402090662,1768516240690,-195.0,0.00017263,2]
[402090663,1768516240700,-2500.0,0.00017263,2]
[402090664,1768516240711,-195.0,0.00017263,2]
[402090665,1768516240720,-193.0,0.00017263,2]
[402090666,1768516240730,-1285.0,0.00017273,2]
[402090667,1768516240739,-1285.0,0.00017309,2]
[402090668,1768516240750,-200.0,0.00017338,2]
[402090669,1768516240760,-200.0,0.00017338,2]
[402090670,1768516240769,-500.0,0.00017338,2]
[402090671,1768516240779,-1285.0,0.00017359,2]
[402090672,1768516240788,-1285.0,0.00017364,2]
[402090673,1768516240798,-36492.17346544,0.00017365,2]
[402090674,1768516240808,-27459.38702439,0.00017365,2]
[402090675,1768516240817,-166.66,0.00017412,2]
[402090676,1768516240827,-1285.0,0.00017436,2]
[402090677,1768516240836,-1854.97,0.00017444,2]
[402090678,1768516240846,-1285.0,0.00017449,2]
[402090679,1768516240855,-1285.0,0.0001749,2]
[402090680,1768516240864,-372.06,0.00017516,2]
[402090681,1768516240873,-1002.71264906,0.00017521,2]
[402090682,1768516240883,-1000.0,0.00017521,2]
[402090683,1768516240892,-1000.0,0.00017521,2]
[402090684,1768516240901,-1000.0,0.00017521,2]
[402090685,1768516240910,-1000.0,0.00017521,2]
[402090686,1768516240920,-1000.0,0.00017521,2]
[402090687,1768516240930,-343.36959723,0.00017521,2]
[402090688,1768516240939,-1000.0,0.00017521,2]
[402090689,1768516240949,-403.28870191,0.00017521,2]
[402090690,1768516240958,-500.0,0.00017521,2]
[402090691,1768516240967,-1000.0,0.00017521,2]
[402090692,1768516240976,-1000.0,0.00017521,2]
[402090693,1768516240986,-1000.0,0.00017521,2]
[402090694,1768516240995,-1000.0,0.00017521,2]
[402090695,1768516241005,-1088.76833495,0.00017521,2]
[402090696,1768516241014,-1848.38690317,0.00017555,2]
[402090697,1768516241023,-1285.0,0.00017608,2]
[402090698,1768516241032,-1285.0,0.00017621,2]
[402090699,1768516241041,-36492.17346544,0.00017633,2]
[402090700,1768516241051,-27459.38702439,0.00017633,2]
[402090701,1768516241061,-1285.0,0.00017643,2]
[402090702,1768516241073,-1285.0,0.00017711,2]
[402090703,1768516241084,-1285.0,0.00017721,2]
[402090704,1768516241095,-1285.0,0.00017772,2]
[402090705,1768516241105,-26626.4333284,0.000178,2]
[402090706,1768516241115,-200.0,0.00017886,2]
[402090707,1768516241126,-200.0,0.00017886,2]
[402090708,1768516241135,-500.0,0.00017886,2]
[402090709,1768516241144,-36492.17346544,0.000179,2]
[402090710,1768516241154,-1390.29840386,0.000179,2]
[402090711,1768516241163,-3599.05328869,0.000179,2]
[402090712,1768516241172,-27459.38702439,0.000179,2]
[402090713,1768516241182,-171.56907632,0.000179,2]
[402090714,1768516241193,-866.0,0.00017916,2]
[402090715,1768516241204,-1285.0,0.00017944,2]
[402090716,1768516241213,-166.66,0.00017968,2]
[402090717,1768516241225,-500.0,0.00017972,2]
[402090718,1768516241235,-500.0,0.00017973,2]
[402090719,1768516241244,-500.0,0.00017973,2]
[402090720,1768516241253,-500.0,0.00017973,2]
[402090721,1768516241263,-500.0,0.00017973,2]
[402090722,1768516241273,-500.0,0.00017973,2]
[402090723,1768516241283,-500.0,0.00017973,2]
[402090724,1768516241293,-500.0,0.00017973,2]
[402090725,1768516241303,-500.0,0.00017973,2]
[402090726,1768516241316,-500.0,0.00017973,2]
[402090727,1768516241326,-500.0,0.00017973,2]
[402090728,1768516241335,-500.0,0.00017973,2]
[402090729,1768516241344,-500.0,0.00017973,2]
[402090730,1768516241355,-500.0,0.00017973,2]
[402090731,1768516241366,-500.0,0.00017973,2]
[402090732,1768516241375,-169.26751175,0.00017973,2]
[402090733,1768516241385,-500.73390845,0.00017973,2]
[402090734,1768516241395,-500.0,0.00017973,2]
[402090735,1768516241404,-500.0,0.00017973,2]
[402090736,1768516241413,-500.0,0.00017973,2]
[402090737,1768516241422,-500.0,0.00017973,2]
[402090738,1768516241431,-500.0,0.00017973,2]
[402090739,1768516241441,-1832.31934377,0.0001799,2]
[402090740,1768516241450,-1832.31934377,0.0001799,2]
[402090741,1768516241459,-300.0,0.00017999,2]
[402090742,1768516241468,-300.0,0.00017999,2]
[402090743,1768516241478,-4421726.26057791,0.00018,2]
[402090777,1768516243045,-1.7e-07,0.00016438,2]
[402090778,1768516243117,-500.0,0.00015693,2]
[402090779,1768516243129,-499.99999983,0.00016438,2]
[402090780,1768516243139,-500.0,0.00016438,2]
[402090781,1768516243149,-439.29806496,0.00016438,2]
[402090783,1768516243213,-60.70193504,0.00016438,2]
[402090784,1768516243222,-354.10447696,0.00016438,2]
[402090785,1768516243244,-145.89552304,0.00016438,2]
[402090786,1768516243254,-288.88889043,0.00016438,2]
[402090788,1768516243263,-3179924.25992085,0.00018,2]
[402090790,1768516243272,-19802.31356721,0.00018,2]
[402090792,1768516243282,-103464.83914837,0.00018,2]
[402090793,1768516243291,-889898.42181462,0.00018,2]
[402090794,1768516243300,-1401.09311542,0.00018,2]
[402090795,1768516243310,-151.0,0.00018,2]
[402090796,1768516243321,-222.487597,0.00018,2]
[402090797,1768516243330,-222.487597,0.00018,2]
[402090798,1768516243339,-222.487597,0.00018,2]
[402090800,1768516243348,-222.487597,0.00018,2]
[402090802,1768516243356,-151.0,0.00018,2]
[402090803,1768516243366,-151.0,0.00018,2]
[402090804,1768516243375,-1000.0,0.00018068,2]
[402090805,1768516243385,-475.81521231,0.00018068,2]
[402090806,1768516243395,-685.70785021,0.00018068,2]
[402090807,1768516243404,-500.0,0.00018068,2]
[402090808,1768516243413,-500.0,0.00018068,2]
[402090809,1768516243421,-500.0,0.00018068,2]
[402090810,1768516243430,-500.0,0.00018068,2]
[402090811,1768516243439,-1285.0,0.00018069,2]
[402090812,1768516243448,-1777.15175269,0.000181,2]
[402090813,1768516243457,-1285.0,0.00018221,2]
[402090814,1768516243466,-1854.97,0.00018274,2]
[402090815,1768516243475,-372.06,0.00018351,2]
[402090816,1768516243484,-88340.9,0.00018356,2]
[402090817,1768516243493,-166.66,0.00018384,2]
[402090818,1768516243501,-1285.0,0.00018414,2]
[402090819,1768516243510,-214.8,0.00018433,2]
[402090820,1768516243520,-301.69227512,0.00018434,2]
[402090821,1768516243529,-248.72844434,0.00018434,2]
[402090822,1768516243538,-500.0,0.00018434,2]
[402090823,1768516243547,-467.6,0.00018438,2]
[402090824,1768516243556,-1285.0,0.00018494,2]
[402090825,1768516243566,-1285.0,0.00018518,2]
[402090826,1768516243575,-500.0,0.00018521,2]
[402090827,1768516243585,-500.0,0.00018521,2]
[402090828,1768516243594,-500.0,0.00018521,2]
[402090829,1768516243603,-500.0,0.00018521,2]
[402090830,1768516243613,-500.0,0.00018521,2]
[402090831,1768516243623,-500.0,0.00018521,2]
[402090832,1768516243633,-500.0,0.00018521,2]
[402090833,1768516243642,-1000.0,0.00018521,2]
[402090834,1768516243651,-1285.0,0.00018522,2]
[402090835,1768516243660,-166.66,0.00018524,2]
[402090836,1768516243670,-284.0,0.00018655,2]
[402090837,1768516243679,-587.0,0.00018655,2]
[402090838,1768516243688,-1285.0,0.00018686,2]
[402090839,1768516243697,-1285.0,0.00018698,2]
[402090840,1768516243706,-166.66,0.00018771,2]
[402090841,1768516243715,-1285.0,0.00018787,2]
[402090842,1768516243724,-151.2,0.000188,2]
[402090843,1768516243734,-151.2,0.000188,2]
[402090844,1768516243743,-151.2,0.000188,2]
[402090845,1768516243752,-151.2,0.000188,2]
[402090846,1768516243761,-151.2,0.000188,2]
[402090847,1768516243770,-151.2,0.000188,2]
[402090848,1768516243780,-151.2,0.000188,2]
[402090849,1768516243790,-151.2,0.000188,2]
[402090850,1768516243799,-151.2,0.000188,2]
[402090851,1768516243809,-151.2,0.000188,2]
[402090852,1768516243819,-151.2,0.000188,2]
[402090853,1768516243828,-151.2,0.000188,2]
[402090854,1768516243837,-151.2,0.000188,2]
[402090855,1768516243847,-151.2,0.000188,2]
[402090856,1768516243856,-151.2,0.000188,2]
[402090857,1768516243865,-151.2,0.000188,2]
[402090858,1768516243875,-151.2,0.000188,2]
[402090859,1768516243885,-151.2,0.000188,2]
[402090860,1768516243894,-151.2,0.000188,2]
[402090861,1768516243905,-151.2,0.000188,2]
[402090862,1768516243914,-151.2,0.000188,2]
[402090863,1768516243923,-151.2,0.000188,2]
[402090864,1768516243932,-151.2,0.000188,2]
[402090865,1768516243941,-151.2,0.000188,2]
[402090866,1768516243951,-151.2,0.000188,2]
[402090867,1768516243960,-151.2,0.000188,2]
[402090868,1768516243969,-151.2,0.000188,2]
[402090869,1768516243978,-151.2,0.000188,2]
[402090870,1768516243987,-151.2,0.000188,2]
[402090871,1768516243997,-151.2,0.000188,2]
[402090872,1768516244006,-151.2,0.000188,2]
[402090873,1768516244016,-151.2,0.000188,2]
[402090874,1768516244026,-2351.0,0.00018844,2]
[402090875,1768516244035,-1285.0,0.00018886,2]
[402090876,1768516244044,-500.0,0.00018982,2]
[402090877,1768516244053,-459.81865092,0.00019,2]
[402090878,1768516244062,-5161.9002297,0.00019,2]
[402090879,1768516244072,-63176.46974197,0.00019,2]
[402090880,1768516244081,-1000.0,0.00019068,2]
[402090881,1768516244090,-166.66,0.00019081,2]
[402090882,1768516244099,-1854.97,0.00019105,2]
[402090883,1768516244108,-166.66,0.00019159,2]
[402090884,1768516244118,-372.06,0.00019185,2]
[402090885,1768516244127,-1473.0,0.00019211,2]
[402090886,1768516244137,-500.0,0.00019302,2]
[402090887,1768516244146,-393.68983283,0.00019355,2]
[402090888,1768516244155,-500.0,0.0001953,2]
[402090889,1768516244164,-166.66,0.00019546,2]
[402090890,1768516244174,-166.66,0.00019637,2]
[402090891,1768516244183,-166.66,0.00019933,2]
[402090892,1768516244192,-1854.97,0.00019936,2]
[402090893,1768516244201,-372.06,0.00020019,2]
[402090894,1768516244210,-542.41651082,0.00020078,2]
[402090895,1768516244219,-166.66,0.0002032,2]
[402090896,1768516244228,-823.0,0.00020404,2]
[402090897,1768516244237,-467.6,0.00020597,2]
[402090898,1768516244246,-1645.0,0.00020598,2]
[402090899,1768516244255,-250.0,0.00020605,2]
[402090900,1768516244264,-3292.0,0.00020715,2]
[402090901,1768516244273,-372.06,0.00020853,2]
[402090902,1768516244282,-372.06,0.00021687,2]
[402090903,1768516244291,-446.97,0.00022305,2]
[402090904,1768516244300,-813.0,0.00022318,2]
[402090905,1768516244309,-372.06,0.00022521,2]
[402090906,1768516244320,-446.97,0.00022579,2]
[402090907,1768516244330,-467.6,0.00022757,2]
[402090908,1768516244339,-4609.0,0.00022772,2]
[402090909,1768516244349,-446.97,0.00022853,2]
[402090910,1768516244359,-393.68983283,0.00022916,2]
[402090911,1768516244368,-446.97,0.00023127,2]
[402090912,1768516244378,-1531.72952247,0.00023549,2]
[402090913,1768516244388,-4042.25844414,0.00024549,2]
[402090914,1768516244397,-7131.02303966,0.00024549,2]
[402090915,1768516244406,-10667.58398886,0.00024549,2]
[402090916,1768516244415,-14433.6159,0.00024549,2]
[402090917,1768516244424,-1000.0,0.00024658,2]
[402090918,1768516244434,-500.0,0.00024799,2]
[402090919,1768516244444,-500.0,0.00024799,2]
[402090920,1768516244454,-55190.5216863,0.000248,2]
[402090921,1768516244464,-109147.0,0.00024884,2]
[402090922,1768516244475,-467.6,0.00024916,2]
[402090923,1768516244484,-3893.0,0.00025033,2]
[402090924,1768516244495,-500.0,0.00025552,2]
[402090925,1768516244505,-613.02562763,0.00025552,2]
[402090926,1768516244517,-287.08897924,0.00025552,2]
[402090927,1768516244526,-322.6107,0.00025971,2]
[402090928,1768516244537,-174.61919141,0.00025971,2]
[402090929,1768516244546,-151.0,0.00025971,2]
[402090930,1768516244555,-500.0,0.00025971,2]
[402090931,1768516244564,-574.12855637,0.00025971,2]
[402090932,1768516244573,-500.0,0.00025971,2]
[402090933,1768516244583,-3000.0,0.00025971,2]
[402090934,1768516244592,-500.0,0.00025971,2]
[402090935,1768516244602,-3000.0,0.00025971,2]
[402090936,1768516244611,-500.0,0.00025971,2]
[402090937,1768516244619,-3000.0,0.00025971,2]
[402090938,1768516244629,-500.0,0.00025971,2]
[402090939,1768516244638,-3000.0,0.00025971,2]
[402090940,1768516244647,-500.0,0.00025971,2]
[402090941,1768516244656,-3000.0,0.00025971,2]
[402090942,1768516244665,-500.0,0.00025971,2]
[402090943,1768516244675,-3000.0,0.00025971,2]
[402090944,1768516244684,-500.0,0.00025971,2]
[402090945,1768516244693,-3000.0,0.00025971,2]
[402090946,1768516244703,-3000.0,0.00025971,2]
[402090947,1768516244713,-500.0,0.00025971,2]
[402090948,1768516244722,-3000.0,0.00025971,2]
[402090949,1768516244731,-464.19143741,0.00025971,2]
[402090950,1768516244741,-3000.0,0.00025971,2]
[402090951,1768516244751,-3000.0,0.00025971,2]
[402090952,1768516244760,-3000.0,0.00025971,2]
[402090953,1768516244769,-578.20924308,0.00025971,2]
[402090954,1768516244778,-3000.0,0.00025971,2]
[402090955,1768516244788,-2500.0,0.00025971,2]
[402090956,1768516244797,-3000.0,0.00025971,2]
[402090957,1768516244806,-3000.0,0.00025971,2]
[402090958,1768516244815,-2500.0,0.00025971,2]
[402090959,1768516244825,-3000.0,0.00025971,2]
[402090960,1768516244834,-2500.0,0.00025971,2]
[402090961,1768516244843,-3000.0,0.00025971,2]
[402090962,1768516244852,-500.0,0.00025971,2]
[402090963,1768516244862,-2500.0,0.00025971,2]
[402090964,1768516244871,-3000.0,0.00025971,2]
[402090965,1768516244880,-500.0,0.00025971,2]
[402090966,1768516244890,-2500.0,0.00025971,2]
[402090967,1768516244899,-500.0,0.00025971,2]
[402090968,1768516244908,-3000.0,0.00025971,2]
[402090969,1768516244918,-500.0,0.00025971,2]
[402090970,1768516244927,-2500.0,0.00025971,2]
[402090971,1768516244936,-500.0,0.00025971,2]
[402090972,1768516244945,-3000.0,0.00025971,2]
[402090973,1768516244954,-500.0,0.00025971,2]
[402090974,1768516244963,-2500.0,0.00025971,2]
[402090975,1768516244973,-500.0,0.00025971,2]
[402090976,1768516244982,-3000.0,0.00025971,2]
[402090977,1768516244991,-500.0,0.00025971,2]
[402090978,1768516245000,-2500.0,0.00025971,2]
[402090979,1768516245010,-3000.0,0.00025971,2]
[402090980,1768516245019,-500.0,0.00025971,2]
[402090981,1768516245028,-500.0,0.00025971,2]
[402090982,1768516245037,-2500.0,0.00025971,2]
[402090983,1768516245046,-500.0,0.00025971,2]
[402090984,1768516245057,-500.0,0.00025971,2]
[402090985,1768516245068,-2500.0,0.00025971,2]
[402090986,1768516245078,-500.0,0.00025971,2]
[402090987,1768516245087,-500.0,0.00025971,2]
[402090988,1768516245096,-2500.0,0.00025971,2]
[402090989,1768516245106,-500.0,0.00025971,2]
[402090990,1768516245115,-500.0,0.00025971,2]
[402090991,1768516245125,-500.0,0.00025971,2]
[402090992,1768516245135,-500.0,0.00025971,2]
[402090993,1768516245147,-589.66560827,0.00025971,2]
[402090994,1768516245158,-500.0,0.00025971,2]
[402090995,1768516245169,-500.0,0.00025971,2]
[402090996,1768516245179,-1056.37014812,0.00025971,2]
[402090997,1768516245188,-500.0,0.00025971,2]
[402090998,1768516245198,-500.0,0.00025971,2]
[402090999,1768516245208,-500.0,0.00025971,2]
[402091000,1768516245217,-500.0,0.00025971,2]
[402091001,1768516245228,-620.0,0.00025971,2]
[402091002,1768516245238,-500.0,0.00025971,2]
[402091003,1768516245248,-500.0,0.00025971,2]
[402091004,1768516245257,-500.0,0.00025971,2]
[402091005,1768516245268,-500.0,0.00025971,2]
[402091006,1768516245277,-500.0,0.00025971,2]
[402091007,1768516245289,-500.0,0.00025971,2]
[402091008,1768516245298,-500.0,0.00025971,2]
[402091009,1768516245308,-721.12765535,0.00025971,2]
[402091010,1768516245321,-393.68983283,0.00026477,2]
[402091011,1768516245332,-181.08010149,0.00026519,2]
[402091012,1768516245341,-151.0,0.00026519,2]
[402091013,1768516245351,-595.37131296,0.00026519,2]
[402091014,1768516245359,-276.35,0.00026527,2]
[402091015,1768516245370,-187.78006525,0.00027067,2]
[402091016,1768516245378,-151.0,0.00027067,2]
[402091017,1768516245389,-617.40005154,0.00027067,2]
[402091018,1768516245398,-467.6,0.00027075,2]
[402091019,1768516245407,-506.0,0.00027137,2]
[402091020,1768516245416,-334.5472959,0.0002734,2]
[402091021,1768516245425,-642.94,0.0002734,2]
[402091022,1768516245434,-500.0,0.00027397,20]
[402091023,1768516245444,-600.0,0.00027397,15]
[402091024,1768516245454,-194.72792766,0.00027615,2]
[402091025,1768516245465,-151.0,0.00027615,2]
[402091026,1768516245475,-640.24385345,0.00027615,2]
[402091027,1768516245484,-600.0,0.00027671,15]
[402091028,1768516245494,-600.0,0.00027945,15]
[402091029,1768516245505,-1390.29840385,0.00028078,2]
[402091031,1768516245514,-3599.05328867,0.00028078,2]
[402091033,1768516245524,-171.56907632,0.00028078,2]
[402091035,1768516245533,-201.93286099,0.00028163,2]
[402091036,1768516245542,-248.38210406,0.00028163,2]
[402091037,1768516245551,-663.93287602,0.00028163,2]
[402091038,1768516245560,-600.0,0.00028219,15]
[402091039,1768516245570,-600.0,0.00028493,15]
[402091040,1768516245579,-150.0,0.0002863,2]
[402091041,1768516245588,-346.92554586,0.00028709,2]
[402091042,1768516245597,-666.72878,0.00028709,2]
[402091043,1768516245607,-599.60298508,0.0002871,2]
[402091044,1768516245616,-747.80937859,0.0002871,2]
[402091045,1768516245625,-209.40437684,0.00028711,2]
[402091046,1768516245634,-688.49839244,0.00028711,2]
[402091047,1768516245643,-600.0,0.00028767,15]
[402091048,1768516245652,-150.0,0.00028858,20]
[402091049,1768516245661,-1404.0,0.00029,5]
[402091051,1768516245903,-600.0,0.00029041,15]
[402091052,1768516245914,-467.6,0.00029235,2]
[402091053,1768516245923,-217.15233878,0.00029259,2]
[402091054,1768516245933,-713.97283296,0.00029259,2]
[402091055,1768516245942,-600.0,0.00029315,15]
[402091056,1768516245953,-600.0,0.00029589,15]
[402091057,1768516245963,-225.18697532,0.00029807,2]
[402091058,1768516245973,-484.22810817,0.00029807,2]
[402091059,1768516245983,-600.0,0.00029863,15]
[402091060,1768516245993,-393.68983283,0.00030038,2]
[402091061,1768516246003,-200.0,0.00030136,2]
[402091062,1768516246012,-600.0,0.00030137,15]
[402091063,1768516246022,-233.51889341,0.00030355,2]
[402091064,1768516246031,-600.0,0.00030411,15]
[402091065,1768516246040,-200.0,0.00030437,2]
[402091066,1768516246050,-6556.0,0.00030668,2]
[402091067,1768516246059,-600.0,0.00030685,15]
[402091068,1768516246070,-200.0,0.00030742,2]
[402091069,1768516246079,-195.58,0.000308,2]
[402091070,1768516246089,-242.15909246,0.00030903,2]
[402091071,1768516246098,-600.0,0.00030959,15]
[402091072,1768516246107,-158.66520404,0.00031,30]
[402091073,1768516246116,-200.0,0.00031049,2]
[402091074,1768516246126,-195.59,0.00031089,2]
[402091075,1768516246135,-11303.239999,0.0003121,2]
[402091076,1768516246144,-600.0,0.00031233,15]
[402091077,1768516246153,-200.0,0.0003136,2]
[402091078,1768516246162,-467.6,0.00031394,2]
[402091079,1768516246172,-251.11897888,0.00031451,2]
[402091080,1768516246181,-500.0,0.00031479,2]
[402091081,1768516246190,-150.0,0.00031493,2]
[402091083,1768516246200,-600.0,0.00031507,15]
[402091084,1768516246209,-500.0,0.00031562,2]
[402091085,1768516246218,-600.0,0.00031781,15]
[402091086,1768516246227,-260.4103811,0.00031999,2]
[402091087,1768516246237,-600.0,0.00032055,15]